bitfinex/quotes_SOLUSD_20240829
["timestamp","ask_amount","ask_price","bid_price","bid_amount"]
[1724932699411,15.6583,146.33,146.28,17.0902]
[1724932700584,29.9458,146.37,146.3,17.0876]
[1724932700784,23.1138,146.37,146.32,6.8343]
[1724932701480,23.1138,146.37,146.31,6.8347]
[1724932701663,29.9459,146.37,146.31,6.8347]
[1724932702482,23.1138,146.37,146.32,6.8341]
[1724932702874,16.6033,146.37,146.33,6.8338]
[1724932703283,16.6033,146.37,146.32,17.0853]
[1724932703693,16.6033,146.37,146.31,6.8344]
[1724932703890,36.02873024,146.37,146.3,6.8351]
[1724932704190,0.25098,146.36,146.31,6.8346]
[1724932704670,16.6033,146.37,146.34,6.8332]
[1724932704869,16.6033,146.37,146.31,12.59303024]
[1724932705071,16.6033,146.37,146.32,6.8341]
[1724932705899,23.4353,146.37,146.31,6.8347]
[1724932706074,0.25098,146.36,146.31,6.8347]
[1724932706572,0.25098,146.36,146.3,6.8351]
[1724932706782,6.8335,146.34,146.28,6.836]
[1724932706974,7.08478,146.33,146.27,17.0908]
[1724932707173,7.08478,146.33,146.27,23.9274]
[1724932707576,6.8343,146.32,146.27,17.0908]
[1724932707880,0.25098,146.31,146.27,17.0908]
[1724932708464,0.25098,146.31,146.26,6.837]
[1724932709090,0.25098,146.31,146.26,12.59303024]
[1724932709287,0.25098,146.31,146.27,6.8366]
[1724932709488,0.25098,146.32,146.27,6.8366]
[1724932709878,7.08538,146.32,146.26,12.59303024]
[1724932710089,16.6033,146.31,146.24,12.59303024]
[1724932710394,0.12549,146.3,146.24,12.59303024]
[1724932710689,0.12549,146.3,146.26,17.0922]
[1724932711397,0.25098,146.3,146.26,17.0922]
[1724932711774,0.25098,146.3,146.23,23.9342]
[1724932712076,52.08618,146.3,146.23,23.9342]
[1724932712485,52.08618,146.3,146.23,17.096]
[1724932712486,0.25098,146.3,146.23,17.096]
[1724932712692,0.25098,146.3,146.24,12.59303024]
[1724932712693,0.12549,146.3,146.24,12.59303024]
[1724932712886,0.12549,146.3,146.25,6.8375]
[1724932713073,0.12549,146.3,146.24,19.43093024]
[1724932713980,0.12549,146.3,146.25,23.9309]
[1724932714303,0.25098,146.3,146.25,23.9309]
[1724932715002,7.08618,146.3,146.25,17.0934]
[1724932715177,0.25098,146.3,146.25,17.0934]
[1724932716596,7.08628,146.3,146.24,12.59303024]
[1724932716888,0.25098,146.3,146.24,19.43063024]
[1724932717379,0.25098,146.3,146.24,6.8376]
[1724932719198,0.25098,146.3,146.25,6.8376]
[1724932721482,0.25098,146.3,146.25,6.8374]
[1724932722504,0.25098,146.3,146.26,6.8368]
[1724932726188,0.12549,146.3,146.27,6.8366]
[1724932727104,0.12549,146.3,146.26,6.837]
[1724932727706,0.12549,146.3,146.27,6.8364]
[1724932729291,0.12549,146.3,146.26,23.9292]
[1724932730412,0.25098,146.3,146.26,23.9292]
[1724932730618,0.25098,146.3,146.26,17.0922]
[1724932733524,7.08628,146.3,146.26,17.0922]
[1724932734796,7.08628,146.3,146.25,6.8375]
[1724932736213,0.25098,146.3,146.25,6.8375]
[1724932739122,0.25098,146.3,146.26,6.8371]
[1724932742912,0.25098,146.3,146.27,6.8365]
[1724932743832,0.12549,146.3,146.27,6.8365]
[1724932744907,16.6033,146.31,146.27,12.59303024]
[1724932745109,21.8723,146.34,146.27,12.59303024]
[1724932745321,21.8723,146.34,146.28,1.36572225]
[1724932745806,28.7058,146.34,146.28,6.8358]
[1724932746008,28.7058,146.34,146.29,6.8355]
[1724932746203,0.12549,146.33,146.29,6.8355]
[1724932746409,0.25098,146.33,146.29,6.8355]
[1724932746708,45.25098,146.33,146.28,23.9262]
[1724932746916,52.08498,146.33,146.28,23.9262]
[1724932748499,0.25098,146.33,146.28,17.0904]
[1724932748703,0.25098,146.33,146.29,6.8356]
[1724932751612,0.25098,146.33,146.28,23.9264]
[1724932752635,6.8346,146.32,146.26,6.8369]
[1724932752832,7.08578,146.31,146.26,6.8369]
[1724932753339,0.25098,146.31,146.26,6.8369]
[1724932753508,0.25098,146.31,146.27,6.8366]
[1724932753909,0.25098,146.32,146.27,6.8366]
[1724932754207,7.08528,146.32,146.27,6.8366]
[1724932754421,7.08528,146.32,146.26,6.8369]
[1724932754422,6.8348,146.31,146.26,6.8369]
[1724932754830,0.25098,146.3,146.26,6.8369]
[1724932755029,0.12549,146.3,146.26,6.8369]
[1724932755331,0.25098,146.31,146.26,12.59303024]
[1724932755515,0.25098,146.32,146.26,12.59303024]
[1724932755713,0.25098,146.32,146.28,6.836]
[1724932756117,6.8351,146.31,146.24,3.18035343]
[1724932756331,0.25098,146.3,146.24,12.59303024]
[1724932757221,0.25098,146.3,146.26,6.837]
[1724932758030,7.08628,146.3,146.25,6.8375]
[1724932761216,0.25098,146.3,146.26,6.8371]
[1724932764930,0.25098,146.3,146.27,6.8366]
[1724932765244,0.25098,146.31,146.27,6.8366]
[1724932767247,7.08578,146.31,146.26,23.9295]
[1724932769050,12.59303024,146.27,146.18,8.52937168]
[1724932769220,6.8376,146.25,146.18,12.59303024]
[1724932770327,6.8381,146.24,146.18,12.59303024]
[1724932770727,0.25098,146.26,146.18,12.59303024]
[1724932770728,6.8385,146.23,146.18,12.59303024]
[1724932771145,6.8385,146.23,146.17,12.59303024]
[1724932771442,6.8392,146.22,146.17,12.59303024]
[1724932773547,6.8385,146.23,146.17,12.59303024]
[1724932773931,22.37859,146.24,146.17,12.59303024]
[1724932774131,6.8391,146.22,146.17,12.59303024]
[1724932774735,12.71852024,146.23,146.14,13.96106045]
[1724932774934,39.3532,146.2,146.07,16.1339]
[1724932775146,6.8437,146.12,146.04,12.59303024]
[1724932775450,12.59303024,146.12,146.03,29.39813545]
[1724932775629,0.12549,146.11,146.03,22.2812]
[1724932776142,12.59303024,146.1,145.99,22.2812]
[1724932776461,12.59303024,146.06,145.91,11.1473]
[1724932776636,0.12549,146.05,145.95,19.71393765]
[1724932776831,0.12549,146.09,145.95,19.71393765]
[1724932776832,12.59303024,146.06,145.95,12.59303024]
[1724932777436,19.43993024,146.06,145.95,12.59303024]
[1724932778138,12.59303024,146.05,145.91,29.40315603]
[1724932778342,0.12549,146.04,145.96,12.59303024]
[1724932778548,0.12549,146.04,145.97,1.36966003]
[1724932779255,12.59303024,146.05,145.97,1.36966003]
[1724932779760,69.83139916,146.1,145.91,22.2812]
[1724932779761,50.0,146.12,145.98,12.59303024]
[1724932779933,12.59303024,146.09,145.98,12.59303024]
[1724932780257,38.42930341,146.11,145.98,31.58480341]
[1724932780469,38.42930341,146.11,145.99,20.0]
[1724932780663,38.42930341,146.11,146.0,45.0]
[1724932780953,6.8446,146.1,146.0,45.0]
[1724932781156,31.71029341,146.09,146.0,45.0]
[1724932782361,0.12549,146.09,146.0,45.0]
[1724932782552,0.25098,146.1,146.0,45.0]
[1724932782880,31.58480341,146.17,146.06,31.58480341]
[1724932783153,22.6136,146.18,146.08,31.58480341]
[1724932783532,22.6136,146.18,146.09,45.0]
[1724932784141,6.2305,146.18,146.09,45.0]
[1724932784541,6.2305,146.18,146.06,31.58480341]
[1724932784742,6.2305,146.18,146.07,65.0]
[1724932784954,6.2305,146.18,146.08,31.58480341]
[1724932785129,6.2305,146.18,146.09,46.36848033]
[1724932785335,6.2305,146.18,146.09,45.0]
[1724932787881,0.12549,146.17,146.05,31.71029341]
[1724932788160,6.96689,146.17,146.06,20.0]
[1724932788359,6.96729,146.16,146.05,31.58480341]
[1724932788747,6.96779,146.15,146.05,31.58480341]
[1724932789050,6.8423,146.15,146.05,31.58480341]
[1724932789252,0.12549,146.16,146.05,31.58480341]
[1724932789253,0.12549,146.14,146.05,31.58480341]
[1724932789637,38.55179341,146.17,146.06,20.0]
[1724932789840,0.12549,146.16,146.06,20.0]
[1724932790755,0.12549,146.16,146.07,45.0]
[1724932791336,31.71029341,146.17,146.07,45.0]
[1724932792160,38.55169341,146.17,146.06,20.0]
[1724932792362,45.12549,146.16,146.06,20.0]
[1724932792759,45.12549,146.16,146.05,31.58480341]
[1724932792945,6.8424,146.15,146.05,31.58480341]
[1724932793144,0.12549,146.14,146.05,31.58480341]
[1724932793547,0.12549,146.14,145.98,31.58480341]
[1724932793548,81.58480341,146.11,145.98,31.58480341]
[1724932793748,6.8456,146.08,145.98,31.58480341]
[1724932793965,0.12549,146.1,145.98,31.58480341]
[1724932794262,45.25098,146.1,145.98,31.58480341]
[1724932794839,45.25098,146.1,145.92,6.4872]
[1724932795038,6.8463,146.07,145.98,31.58480341]
[1724932795264,6.8466,146.06,145.98,31.58480341]
[1724932795646,6.8466,146.06,145.96,31.58480341]
[1724932795959,31.58480341,146.07,145.92,6.4872]
[1724932796167,6.8472,146.05,145.95,31.58480341]
[1724932796464,6.8465,146.06,145.95,31.58480341]
[1724932796763,6.8465,146.06,145.97,31.58480341]
[1724932797561,6.8461,146.07,145.97,31.58480341]
[1724932797964,0.12549,146.08,145.97,31.58480341]
[1724932798263,6.8454,146.09,145.99,31.58480341]
[1724932798645,6.8461,146.07,145.92,6.4872]
[1724932798961,6.8461,146.07,145.98,31.58480341]
[1724932799162,0.12549,146.08,145.98,31.58480341]
[1724932799163,6.8466,146.06,145.98,31.58480341]
[1724932799469,50.12549,146.08,145.98,31.58480341]
[1724932799767,6.8475,146.04,145.95,31.58480341]
[1724932800561,13.078,146.04,145.95,31.58480341]
[1724932800759,6.8479,146.03,145.92,6.4872]
[1724932800959,6.8488,146.01,145.91,31.58480341]
[1724932801149,23.2315,146.02,145.88,5.0]
[1724932801345,16.3831,146.02,145.94,31.58480341]
[1724932801648,23.2319,146.02,145.95,31.58480341]
[1724932801856,16.3831,146.02,145.95,31.58480341]
[1724932802438,6.2305,146.04,145.97,31.58480341]
[1724932804153,16.3831,146.07,145.99,31.58480341]
[1724932805060,6.2305,146.08,146.0,45.0]
[1724932805584,38.42900341,146.11,146.0,45.0]
[1724932806252,6.8442,146.11,146.01,31.71029341]
[1724932806443,22.6136,146.12,146.02,45.0]
[1724932806648,22.6136,146.12,146.03,31.58480341]
[1724932806970,6.8447,146.1,146.0,31.58480341]
[1724932807169,31.58480341,146.11,145.99,31.58480341]
[1724932807378,31.58480341,146.09,146.0,45.0]
[1724932808966,38.42900341,146.11,146.0,45.0]
[1724932809263,29.4573,146.12,146.01,31.71029341]
[1724932809468,22.6136,146.12,146.02,65.0]
[1724932809665,22.6136,146.12,146.03,31.71029341]
[1724932809864,22.6136,146.12,146.04,45.0]
[1724932810082,31.58480341,146.11,146.04,45.0]
[1724932810271,31.58480341,146.09,145.95,16.6577]
[1724932810585,38.43020341,146.09,145.97,51.58480341]
[1724932811757,38.43020341,146.09,145.98,45.25098]
[1724932811962,31.58480341,146.09,145.99,20.0]
[1724932812280,38.43000341,146.09,146.0,45.12549]
[1724932813775,38.43000341,146.09,146.0,45.0]
[1724932813972,31.58480341,146.09,146.0,45.0]
[1724932814571,6.8447,146.1,146.0,45.0]
[1724932815289,29.4573,146.12,146.03,31.58480341]
[1724932815466,6.8447,146.1,146.01,31.83578341]
[1724932815665,6.8447,146.1,146.02,45.0]
[1724932815885,54.19840341,146.12,146.02,45.0]
[1724932816091,31.58480341,146.1,145.99,20.0]
[1724932816393,38.43270341,146.03,145.97,0.69047047]
[1724932816683,6.8486,146.02,145.92,31.58480341]
[1724932816872,6.8486,146.02,145.93,1.36988828]
[1724932817073,6.8489,146.01,145.92,31.58480341]
[1724932817382,6.8489,146.01,145.93,1.36935474]
[1724932817592,6.8497,145.99,145.93,1.36935474]
[1724932818087,6.8494,146.0,145.93,1.36935474]
[1724932820186,6.8499,145.99,145.93,1.36935474]
[1724932820575,6.8499,145.99,145.94,1.36999225]
[1724932821179,6.8493,146.0,145.94,1.36999225]
[1724932821388,53.81190341,145.99,145.89,1.36999289]
[1724932821570,22.2271,145.99,145.9,33.08028668]
[1724932821770,22.2271,145.99,145.91,45.0]
[1724932821988,22.2271,145.99,145.92,1.36980549]
[1724932822182,22.2271,145.99,145.93,1.36998944]
[1724932823198,29.0769,145.99,145.93,1.36998944]
[1724932824070,16.0239,145.95,145.88,31.58480341]
[1724932824271,16.0239,145.95,145.89,45.25098]
[1724932824578,6.2032,145.96,145.9,0.51399832]
[1724932824770,6.2032,145.96,145.91,0.12549]
[1724932825283,6.2032,145.96,145.91,1.49549516]
[1724932825702,6.8494,146.0,145.92,31.58480341]
[1724932825994,6.8494,146.0,145.93,46.49530445]
[1724932826208,6.2032,146.01,145.94,31.58480341]
[1724932826576,6.2032,146.01,145.95,45.0]
[1724932827294,16.0239,146.03,145.95,45.0]
[1724932828084,22.8722,146.03,145.95,45.0]
[1724932828794,22.872,146.03,145.95,45.0]
[1724932829185,16.0239,146.03,145.95,45.0]
[1724932829583,6.8489,146.01,145.95,45.0]
[1724932829797,16.0239,146.03,145.95,45.0]
[1724932829996,17.67848804,146.03,145.95,45.0]
[1724932830200,6.8485,146.02,145.95,45.0]
[1724932830675,17.67848804,146.03,145.96,1.36902462]
[1724932830676,6.8498,145.99,145.96,1.36902462]
[1724932830880,6.8493,146.0,145.92,1.36918543]
[1724932831092,17.67848804,146.03,145.92,1.36918543]
[1724932831308,6.8488,146.01,145.93,1.36928021]
[1724932831595,17.67848804,146.03,145.93,1.36928021]
[1724932832191,6.8493,146.0,145.93,1.36928021]
[1724932832386,6.8499,145.99,145.93,1.36928021]
[1724932833196,6.2032,145.98,145.93,1.36928021]
[1724932833400,6.2032,145.98,145.84,5.0]
[1724932833401,6.2032,146.02,145.91,31.58480341]
[1724932833587,1.65458804,146.01,145.92,1.3699755]
[1724932833779,6.8501,145.99,145.92,1.3699755]
[1724932834073,6.8503,145.98,145.92,1.3699755]
[1724932834791,1.65458804,146.01,145.92,46.3699755]
[1724932834993,7.85778804,146.02,145.92,46.3699755]
[1724932835193,6.8498,145.99,145.92,46.3699755]
[1724932835709,6.8496,146.0,145.93,31.71029341]
[1724932835997,6.2032,146.02,145.94,46.36978775]
[1724932836308,13.0515,146.02,145.94,45.0]
[1724932836602,6.8483,146.02,145.94,45.0]
[1724932836808,1.65458804,146.02,145.91,0.12549]
[1724932836993,1.65458804,146.02,145.91,31.71029341]
[1724932837306,6.8489,146.01,145.92,65.25098]
[1724932837485,6.8489,146.01,145.92,65.12549]
[1724932839611,31.58480341,145.99,145.93,1.36986378]
[1724932839900,33.23939145,146.01,145.93,1.36986378]
[1724932840202,1.65458804,146.01,145.91,31.58480341]
[1724932840412,6.8494,146.0,145.92,46.36967602]
[1724932840706,1.65458804,146.02,145.92,46.36967602]
[1724932840889,33.23939145,146.01,145.92,46.36967602]
[1724932841088,6.8503,145.98,145.92,46.36967602]
[1724932841306,6.2032,145.96,145.92,46.36967602]
[1724932841500,37.78800341,145.99,145.92,1.36967602]
[1724932841686,44.63820341,145.99,145.92,1.36967602]
[1724932841891,13.0534,145.99,145.92,1.36967602]
[1724932842087,13.0534,145.99,145.9,1.37001315]
[1724932842310,13.0534,145.99,145.91,0.12549]
[1724932842600,13.0534,145.99,145.91,1.49550394]
[1724932842803,6.8504,145.98,145.91,1.49550394]
[1724932844302,37.78800341,145.99,145.91,1.49550394]
[1724932844513,6.8502,145.98,145.91,0.12549]
[1724932844680,33.23939145,146.01,145.91,0.12549]
[1724932844883,6.8499,145.99,145.91,1.49475278]
[1724932846321,6.8493,146.0,145.91,1.49475278]
[1724932846614,6.8489,146.01,145.91,33.07955619]
[1724932846911,31.58480341,146.0,145.92,45.0]
[1724932847103,6.104,146.02,145.93,1.36841798]
[1724932847311,31.58480341,146.0,145.93,1.36841798]
[1724932847990,6.8502,145.99,145.93,1.36841798]
[1724932848209,6.8492,146.01,145.93,1.36841798]
[1724932849614,31.58480341,146.02,145.93,1.36841798]
[1724932849825,31.58480341,145.98,145.93,1.36841798]
[1724932849993,1.65458804,146.01,145.9,6.6234]
[1724932850189,6.8499,145.99,145.91,1.495413]
[1724932850712,6.8502,145.99,145.91,1.369923]
[1724932851404,6.8502,145.99,145.91,46.369923]
[1724932851897,6.8502,145.99,145.92,0.12549]
[1724932853414,31.58480341,146.01,145.91,46.369923]
[1724932853714,18.77638804,146.02,145.91,77.95472641]
[1724932853898,6.8498,145.99,145.92,0.12549]
[1724932854512,18.77638804,146.02,145.91,45.0]
[1724932854513,31.58480341,146.01,145.91,45.0]
[1724932854809,31.58480341,146.01,145.9,45.12549]
[1724932855114,31.27628913,146.01,145.91,0.12549]
[1724932855511,6.8506,145.98,145.91,0.12549]
[1724932855715,6.8506,145.98,145.91,1.05921646]
[1724932856520,6.8506,145.98,145.92,0.93362652]
[1724932856824,6.8503,145.98,145.92,0.93362652]
[1724932857414,6.8503,145.98,145.91,0.12549]
[1724932857614,6.8508,145.97,145.91,0.12549]
[1724932857821,6.8503,145.98,145.91,1.49472206]
[1724932858294,6.8503,145.98,145.91,1.36923206]
[1724932859313,6.8507,145.97,145.91,1.36923206]
[1724932859714,6.8503,145.98,145.91,1.36923206]
[1724932860211,33.23939145,146.01,145.91,1.36923206]
[1724932860212,6.8507,145.97,145.91,1.36923206]
[1724932860397,17.1218,146.02,145.91,1.36923206]
[1724932860602,6.8496,146.0,145.92,31.83578341]
[1724932860923,6.8482,146.03,145.94,6.6234]
[1724932861101,6.8484,146.02,145.95,45.12549]
[1724932861423,6.8488,146.01,145.95,45.12549]
[1724932861718,33.23939145,146.05,145.95,60.71729]
[1724932861894,1.65458804,146.04,145.95,60.71729]
[1724932862628,1.65458804,146.04,145.95,60.5918]
[1724932862802,1.65458804,146.04,145.96,0.63096779]
[1724932862803,31.58480341,146.03,145.96,0.63096779]
[1724932863135,38.43400341,146.01,145.9,31.58480341]
[1724932863291,6.8493,146.0,145.91,4.57537388]
[1724932863495,31.58480341,146.01,145.91,1.36984056]
[1724932864099,31.58480341,146.01,145.91,4.57563587]
[1724932864298,31.58480341,146.01,145.91,1.36984056]
[1724932864509,31.58480341,146.01,145.91,4.57563587]
[1724932864912,6.8501,145.99,145.91,4.57563587]
[1724932865110,6.8501,145.99,145.91,1.36984056]
[1724932865419,6.8502,145.98,145.92,0.12549]
[1724932865619,6.8502,145.98,145.92,4.7010399]
[1724932865826,6.8502,145.98,145.93,45.0]
[1724932866118,6.8502,145.98,145.94,1.36995686]
[1724932867018,6.8502,145.98,145.91,1.36997928]
[1724932867227,6.851,145.97,145.91,46.36997928]
[1724932867821,6.851,145.97,145.92,45.0]
[1724932868115,6.8503,145.98,145.93,1.37004004]
[1724932868323,6.8496,146.0,145.93,1.37004004]
[1724932868510,6.8498,145.99,145.93,1.37004004]
[1724932869426,1.65458804,146.01,145.85,22.2152]
[1724932869597,24.87998804,146.02,145.91,31.58480341]
[1724932869801,1.65458804,146.01,145.92,46.49399575]
[1724932870121,6.8505,145.98,145.92,46.49399575]
[1724932870618,24.87998804,146.02,145.92,46.49399575]
[1724932871008,6.8498,145.99,145.93,6.6234]
[1724932871214,6.8498,145.99,145.94,46.3683182]
[1724932873716,1.65458804,146.03,145.94,46.3683182]
[1724932873717,7.75858804,146.06,145.95,32.95464864]
[1724932873906,6.848,146.03,145.96,45.0]
[1724932874229,6.848,146.03,145.97,1.08590468]
[1724932874610,6.848,146.03,145.96,45.0]
[1724932874816,1.65458804,146.02,145.88,6.4713]
[1724932875127,6.8493,146.0,145.9,31.58480341]
[1724932875331,6.8498,145.99,145.91,1.30915604]
[1724932875626,6.8499,145.99,145.92,31.58480341]
[1724932875805,6.8499,145.99,145.93,1.30897661]
[1724932876334,6.8504,145.98,145.93,1.30897661]
[1724932876715,6.8498,145.99,145.93,1.30897661]
[1724932877429,6.8498,145.99,145.93,46.30897661]
[1724932877630,6.8493,146.0,145.93,46.30897661]
[1724932878047,6.8487,146.02,145.94,1.30825906]
[1724932878331,31.58480341,146.04,145.95,0.12549]
[1724932878528,6.8485,146.02,145.95,0.12549]
[1724932878912,6.8477,146.04,145.96,6.4713]
[1724932879339,6.8477,146.04,145.97,45.0]
[1724932879565,7.50110234,146.07,145.98,31.58480341]
[1724932879706,33.23939145,146.1,145.99,46.61902607]
[1724932880040,6.8456,146.08,146.0,47.53100341]
[1724932880222,6.846,146.07,146.01,45.0]
[1724932880427,6.8465,146.06,146.01,45.0]
[1724932880617,6.846,146.07,146.01,45.0]
[1724932880933,38.43040341,146.08,146.01,45.0]
[1724932881433,31.58480341,146.04,145.9,22.4175]
[1724932881739,31.58480341,146.04,145.91,31.58480341]
[1724932881907,6.8479,146.03,145.93,31.58480341]
[1724932882733,6.847,146.05,145.97,47.53100341]
[1724932882936,6.847,146.05,145.98,45.0]
[1724932883449,1.65458804,146.08,145.98,45.0]
[1724932883755,6.8468,146.06,145.99,0.12549]
[1724932884416,6.8468,146.06,145.98,0.25098]
[1724932886044,6.8468,146.06,145.99,31.58480341]
[1724932886636,6.8471,146.05,145.98,0.25098]
[1724932888045,22.9343,146.1,145.98,0.25098]
[1724932888046,24.58888804,146.1,145.99,31.58480341]
[1724932888229,1.65458804,146.09,146.0,0.12549]
[1724932888549,1.65458804,146.09,146.0,0.25098]
[1724932888747,22.9343,146.1,146.0,0.25098]
[1724932889047,24.58888804,146.1,146.0,0.25098]
[1724932889243,6.846,146.07,146.0,0.25098]
[1724932889627,6.8455,146.08,146.0,0.25098]
[1724932890227,6.845,146.09,146.0,0.25098]
[1724932890425,6.8462,146.07,146.0,0.12549]
[1724932891224,6.8471,146.05,146.0,0.12549]
[1724932891549,22.9343,146.02,145.92,31.58480341]
[1724932891732,6.8494,146.0,145.9,47.53100341]
[1724932891940,6.8494,146.0,145.91,1.32385375]
[1724932892847,6.8494,146.0,145.92,31.58480341]
[1724932893139,6.8494,146.0,145.93,1.32367231]
[1724932893352,22.9343,146.02,145.93,1.32367231]
[1724932893537,6.8488,146.01,145.93,1.32367231]
[1724932893729,6.8488,146.01,145.92,31.58480341]
[1724932894449,6.8498,145.99,145.93,1.32294666]
[1724932894647,17.94618804,146.01,145.93,1.32294666]
[1724932894949,1.65458804,146.01,145.93,1.32294666]
[1724932895145,6.8504,145.98,145.93,1.32294666]
[1724932895448,6.8504,145.98,145.91,1.32294666]
[1724932896248,1.65458804,146.01,145.92,0.12549]
[1724932896439,1.65458804,146.01,145.92,1.44825533]
[1724932896747,6.8494,146.0,145.92,1.44825533]
[1724932897640,6.8498,145.99,145.92,1.44825533]
[1724932900654,2.82810028,146.05,145.92,1.44825533]
[1724932900655,31.58480341,146.03,145.92,1.44825533]
[1724932900830,1.65458804,146.05,145.94,31.58480341]
[1724932901034,31.58480341,146.06,145.95,1.44798343]
[1724932901248,1.65458804,146.05,145.96,0.12549]
[1724932901449,6.8482,146.03,145.96,0.12549]
[1724932902083,6.8482,146.03,145.95,0.12549]
[1724932902084,6.8484,146.02,145.95,0.12549]
[1724932902354,6.8484,146.02,145.94,0.25098]
[1724932903057,6.848,146.03,145.94,0.25098]
[1724932903547,6.8475,146.04,145.94,31.83578341]
[1724932903858,31.58480341,146.06,145.95,20.0]
[1724932904062,31.58480341,146.08,145.96,33.20513439]
[1724932904237,38.43040341,146.08,145.98,31.58480341]
[1724932904760,38.43040341,146.08,145.99,0.25098]
[1724932905142,31.58480341,146.08,145.99,0.25098]
[1724932905351,38.43070341,146.08,145.99,0.25098]
[1724932905650,6.8461,146.07,145.99,0.25098]
[1724932906355,38.43040341,146.08,145.99,0.25098]
[1724932906760,38.43040341,146.08,145.99,1.6193858]
[1724932907161,6.8456,146.08,145.99,1.6193858]
[1724932907347,31.58480341,146.13,146.0,32.95267955]
[1724932907543,6.8442,146.11,146.01,0.25098]
[1724932907743,6.8442,146.11,146.02,1.36768878]
[1724932907943,14.34530234,146.11,146.02,1.36768878]
[1724932908151,14.34530234,146.11,146.03,0.25098]
[1724932908446,45.93010575,146.11,146.04,1.36751396]
[1724932908649,45.93010575,146.11,146.03,0.25098]
[1724932908853,38.42900341,146.11,146.03,0.25098]
[1724932909275,7.50110234,146.1,146.03,0.25098]
[1724932909640,6.8437,146.12,146.03,0.25098]
[1724932909842,6.8437,146.12,146.04,0.12549]
[1724932910147,6.8437,146.12,146.02,31.83578341]
[1724932910746,45.92920575,146.13,146.02,31.83578341]
[1724932910951,31.58480341,146.15,146.04,31.58480341]
[1724932911155,6.8409,146.18,146.08,31.58480341]
[1724932911362,33.23939145,146.19,146.09,1.61930914]
[1724932911742,6.8402,146.2,146.1,6.2374]
[1724932911963,6.8404,146.19,146.12,15.568]
[1724932912168,6.8404,146.19,146.13,1.36795458]
[1724932912568,6.84,146.2,146.13,1.36795458]
[1724932913571,31.58480341,146.24,146.14,7.95941491]
[1724932913762,6.8386,146.23,146.14,38.17729341]
[1724932913945,8.49318804,146.23,146.14,38.17729341]
[1724932914257,6.8386,146.23,146.14,38.17729341]
[1724932914461,6.8386,146.23,146.15,0.12549]
[1724932914662,38.42290341,146.24,146.15,0.12549]
[1724932915465,38.42290341,146.24,146.16,15.9446]
[1724932916366,1.65458804,146.25,146.16,15.9446]
[1724932916556,1.65458804,146.25,146.17,0.43608781]
[1724932917087,6.8385,146.24,146.17,0.43608781]
[1724932917268,6.8385,146.24,146.16,15.9446]
[1724932917269,1.65458804,146.23,146.16,15.9446]
[1724932917441,6.8399,146.2,146.16,15.9446]
[1724932917767,8.49418804,146.21,146.16,15.9446]
[1724932917948,1.65458804,146.2,146.16,15.9446]
[1724932918151,8.49418804,146.21,146.16,15.9446]
[1724932918342,17.54988804,146.21,146.08,21.8292]
[1724932918547,31.58480341,146.19,146.08,21.8292]
[1724932918850,6.8418,146.16,146.08,21.8292]
[1724932919046,8.49638804,146.16,146.08,21.8292]
[1724932919656,31.58480341,146.15,146.08,21.8292]
[1724932919849,31.58480341,146.17,146.08,21.8292]
[1724932920164,1.65458804,146.16,146.08,21.8292]
[1724932920465,8.49638804,146.16,146.08,21.8292]
[1724932920771,6.8412,146.18,146.08,21.8292]
[1724932920974,1.65458804,146.17,146.08,21.8292]
[1724932921969,8.49618804,146.17,146.08,21.8292]
[1724932923153,33.23939145,146.17,146.08,21.8292]
[1724932923472,6.8424,146.15,146.08,21.8292]
[1724932923675,8.49738804,146.14,146.08,21.8292]
[1724932924177,31.58480341,146.15,146.08,21.8292]
[1724932924350,1.65458804,146.14,146.08,21.8292]
[1724932924855,33.23939145,146.19,146.08,21.8292]
[1724932925051,6.841,146.18,146.09,0.12549]
[1724932925266,8.49588804,146.17,146.09,0.12549]
[1724932925458,1.65458804,146.18,146.09,31.71029341]
[1724932925750,8.49408804,146.21,146.12,15.9861]
[1724932925967,8.49338804,146.23,146.14,6.0382]